[Event "Late-Titled-Tuesday-Blitz-June-18-2024"]
[Site "Chess.com"]
[Date "2024.06.18"]
[Round "4"]
[White "InadaC"]
[Black "Schattman"]
[Result "1-0"]
[WhiteElo "2261"]
[BlackElo "2461"]
[TimeControl "180+1"]
[EndTime "14:41:03 PDT"]
[Termination "InadaC won on time"]

1. Nf3 {[%clk 0:03:00.1]} 1... Nf6 {[%clk 0:02:59.7]} 2. b3 {[%clk 0:02:53.9]}
2... e6 {[%clk 0:02:59.2]} 3. Bb2 {[%clk 0:02:54.4]} 3... d5 {[%clk 0:02:59.8]}
4. g3 {[%clk 0:02:53.6]} 4... Be7 {[%clk 0:03:00]} 5. Bg2 {[%clk 0:02:51.9]}
5... O-O {[%clk 0:03:00.5]} 6. O-O {[%clk 0:02:52]} 6... b6 {[%clk 0:03:01]} 7.
d4 {[%clk 0:02:51.8]} 7... Bb7 {[%clk 0:03:00.9]} 8. e3 {[%clk 0:02:52]} 8... c5
{[%clk 0:02:58.5]} 9. Nbd2 {[%clk 0:02:52.1]} 9... Nbd7 {[%clk 0:02:52.6]} 10.
Re1 {[%clk 0:02:49.4]} 10... Rc8 {[%clk 0:02:51.7]} 11. c4 {[%clk 0:02:49.3]}
11... cxd4 {[%clk 0:02:43.7]} 12. exd4 {[%clk 0:02:47]} 12... dxc4 {[%clk
0:02:33.9]} 13. Nxc4 {[%clk 0:02:45.4]} 13... Nd5 {[%clk 0:02:27.6]} 14. a3
{[%clk 0:02:41]} 14... b5 {[%clk 0:02:23.8]} 15. Nce5 {[%clk 0:02:34]} 15...
N7f6 {[%clk 0:02:16.8]} 16. h4 {[%clk 0:02:26.5]} 16... Qb6 {[%clk 0:02:12.9]}
17. b4 {[%clk 0:02:20.1]} 17... Nc3 {[%clk 0:02:10.1]} 18. Qd3 {[%clk
0:02:08.8]} 18... Na4 {[%clk 0:01:53]} 19. Bc1 {[%clk 0:02:01.2]} 19... Rc3
{[%clk 0:01:52.6]} 20. Qd1 {[%clk 0:01:56.3]} 20... Rd8 {[%clk 0:01:41]} 21. Be3
{[%clk 0:01:51.9]} 21... h6 {[%clk 0:01:32.8]} 22. Rc1 {[%clk 0:01:46.2]} 22...
Rdc8 {[%clk 0:01:33]} 23. Rxc3 {[%clk 0:01:37.9]} 23... Rxc3 {[%clk 0:01:32.6]}
24. d5 {[%clk 0:01:27.3]} 24... Rxe3 {[%clk 0:01:23.4]} 25. Rxe3 {[%clk
0:01:25.2]} 25... Nxd5 {[%clk 0:01:23]} 26. Re1 {[%clk 0:01:24.3]} 26... Bf6
{[%clk 0:01:20.9]} 27. Nd7 {[%clk 0:01:22.5]} 27... Qd8 {[%clk 0:01:14.7]} 28.
Nxf6+ {[%clk 0:01:21.5]} 28... Qxf6 {[%clk 0:01:15.6]} 29. Qd4 {[%clk
0:01:19.5]} 29... Qe7 {[%clk 0:01:01.1]} 30. Qxa7 {[%clk 0:01:13.3]} 30... Qc7
{[%clk 0:01:01.1]} 31. Nd4 {[%clk 0:01:09.4]} 31... Qc3 {[%clk 0:00:57.5]} 32.
Rf1 {[%clk 0:01:02.7]} 32... Bc8 {[%clk 0:00:32.5]} 33. Nxb5 {[%clk 0:01:00.4]}
33... Qc2 {[%clk 0:00:29.9]} 34. Nd6 {[%clk 0:00:55.9]} 34... Kh7 {[%clk
0:00:27.7]} 35. Be4+ {[%clk 0:00:51.9]} 1-0

[Event "Late-Titled-Tuesday-Blitz-June-18-2024"]
[Site "Chess.com"]
[Date "2024.06.18"]
[Round "4"]
[White "CombativeWombat"]
[Black "King_Deded4d5"]
[Result "0-1"]
[WhiteElo "2297"]
[BlackElo "2481"]
[TimeControl "180+1"]
[EndTime "14:41:09 PDT"]
[Termination "King_Deded4d5 won by resignation"]

1. e4 {[%clk 0:03:00.9]} 1... e6 {[%clk 0:03:00.4]} 2. d4 {[%clk 0:02:57.8]}
2... d5 {[%clk 0:03:00.8]} 3. Nd2 {[%clk 0:02:58.5]} 3... c5 {[%clk 0:03:00.4]}
4. Ngf3 {[%clk 0:02:58.5]} 4... cxd4 {[%clk 0:03:00.1]} 5. Nxd4 {[%clk
0:02:59.4]} 5... Nc6 {[%clk 0:03:00.6]} 6. Bb5 {[%clk 0:02:59.2]} 6... Bd7
{[%clk 0:03:00.8]} 7. Nxc6 {[%clk 0:02:58.7]} 7... bxc6 {[%clk 0:03:01.7]} 8.
Bd3 {[%clk 0:02:58.9]} 8... Ne7 {[%clk 0:03:00.5]} 9. Ke2 {[%clk 0:02:52.9]}
9... Ng6 {[%clk 0:03:00]} 10. Nf3 {[%clk 0:02:51.9]} 10... Qc7 {[%clk 0:02:56]}
11. Re1 {[%clk 0:02:51.4]} 11... dxe4 {[%clk 0:02:41.6]} 12. Bxe4 {[%clk
0:02:50.7]} 12... f5 {[%clk 0:02:42.2]} 13. Bd3 {[%clk 0:02:47.6]} 13... Be7
{[%clk 0:02:42.7]} 14. Kf1 {[%clk 0:02:43.1]} 14... O-O {[%clk 0:02:43.2]} 15.
Bc4 {[%clk 0:02:42.3]} 15... Rae8 {[%clk 0:02:30.8]} 16. Bxe6+ {[%clk
0:02:41.7]} 16... Bxe6 {[%clk 0:02:31.1]} 17. Rxe6 {[%clk 0:02:42.6]} 17... Bc5
{[%clk 0:02:27.2]} 18. Qe2 {[%clk 0:02:34.3]} 18... Qd7 {[%clk 0:02:16.4]} 19.
Rxe8 {[%clk 0:02:28.8]} 19... Rxe8 {[%clk 0:02:17.3]} 20. Qc4+ {[%clk
0:02:28.7]} 20... Kh8 {[%clk 0:02:17.8]} 21. Bd2 {[%clk 0:02:14]} 21... Ne5
{[%clk 0:02:12.3]} 22. Qxc5 {[%clk 0:02:06.1]} 22... Nxf3 {[%clk 0:02:12.2]} 23.
gxf3 {[%clk 0:02:06.6]} 23... Qxd2 {[%clk 0:02:12.5]} 24. Kg2 {[%clk 0:01:44.7]}
24... h6 {[%clk 0:02:06.5]} 25. Qxf5 {[%clk 0:01:38.3]} 25... Re2 {[%clk
0:01:58.3]} 26. Qf8+ {[%clk 0:01:35.6]} 26... Kh7 {[%clk 0:01:58.3]} 27. Qf5+
{[%clk 0:01:35.8]} 27... Kh8 {[%clk 0:01:58.6]} 28. Rf1 {[%clk 0:01:29.9]} 28...
Qxc2 {[%clk 0:01:57.8]} 29. Qxc2 {[%clk 0:01:28.1]} 29... Rxc2 {[%clk
0:01:58.7]} 30. Rb1 {[%clk 0:01:23.1]} 30... g5 {[%clk 0:01:58.1]} 31. f4 {[%clk
0:01:23]} 31... gxf4 {[%clk 0:01:57.8]} 32. Kf3 {[%clk 0:01:23.1]} 32... Kg7
{[%clk 0:01:58.1]} 33. h4 {[%clk 0:01:16.1]} 33... Kf6 {[%clk 0:01:58.1]} 34.
Kxf4 {[%clk 0:01:09.7]} 34... Rxf2+ {[%clk 0:01:57.6]} 35. Kg3 {[%clk
0:01:09.3]} 35... Rc2 {[%clk 0:01:58]} 36. Rf1+ {[%clk 0:01:05.9]} 36... Ke5
{[%clk 0:01:56.5]} 37. Rf7 {[%clk 0:01:03.1]} 37... Rxb2 {[%clk 0:01:54.1]} 38.
Rxa7 {[%clk 0:01:03.3]} 38... c5 {[%clk 0:01:54.6]} 39. a4 {[%clk 0:00:53.4]}
39... c4 {[%clk 0:01:54.3]} 40. a5 {[%clk 0:00:44.3]} 40... c3 {[%clk
0:01:54.6]} 41. a6 {[%clk 0:00:42.3]} 41... Ra2 {[%clk 0:01:24]} 42. Rc7 {[%clk
0:00:39.1]} 42... Kd4 {[%clk 0:01:22.2]} 43. a7 {[%clk 0:00:38.4]} 43... Kd3
{[%clk 0:01:21.1]} 44. Kg4 {[%clk 0:00:37.6]} 44... c2 {[%clk 0:01:21.3]} 45.
Kh5 {[%clk 0:00:37.8]} 45... Rxa7 {[%clk 0:01:18.4]} 46. Rc6 {[%clk 0:00:16.7]}
46... Ra4 {[%clk 0:01:11.5]} 47. Kxh6 {[%clk 0:00:11.6]} 47... Rc4 {[%clk
0:01:10.6]} 0-1

[Event "Late-Titled-Tuesday-Blitz-June-18-2024"]
[Site "Chess.com"]
[Date "2024.06.18"]
[Round "4"]
[White "CoachVadim"]
[Black "newyorkmouse"]
[Result "0-1"]
[WhiteElo "2392"]
[BlackElo "2586"]
[TimeControl "180+1"]
[EndTime "14:41:13 PDT"]
[Termination "newyorkmouse won on time"]

1. Nf3 {[%clk 0:03:00.9]} 1... c5 {[%clk 0:02:59.9]} 2. g3 {[%clk 0:03:01.5]}
2... g6 {[%clk 0:03:00]} 3. Bg2 {[%clk 0:03:01.6]} 3... Bg7 {[%clk 0:03:00.7]}
4. O-O {[%clk 0:03:01.5]} 4... Nf6 {[%clk 0:03:01.4]} 5. d4 {[%clk 0:03:01.7]}
5... O-O {[%clk 0:03:00.8]} 6. d5 {[%clk 0:02:59.5]} 6... e6 {[%clk 0:03:00.8]}
7. Nc3 {[%clk 0:02:53.3]} 7... d6 {[%clk 0:02:49.1]} 8. e4 {[%clk 0:02:35.5]}
8... exd5 {[%clk 0:02:36.6]} 9. exd5 {[%clk 0:02:36.4]} 9... Re8 {[%clk
0:02:33]} 10. h3 {[%clk 0:02:30.5]} 10... Nbd7 {[%clk 0:02:19.7]} 11. Bf4 {[%clk
0:02:28.4]} 11... Nh5 {[%clk 0:02:15.3]} 12. Bxd6 {[%clk 0:02:17.2]} 12... Qb6
{[%clk 0:02:04.7]} 13. Bxc5 {[%clk 0:01:55.2]} 13... Nxc5 {[%clk 0:02:00.3]} 14.
Rb1 {[%clk 0:01:52.6]} 14... Bd7 {[%clk 0:01:54.7]} 15. Qd2 {[%clk 0:01:46.5]}
15... Ne4 {[%clk 0:01:49.4]} 16. Nxe4 {[%clk 0:01:45.4]} 16... Rxe4 {[%clk
0:01:50.3]} 17. c3 {[%clk 0:01:26.9]} 17... Rae8 {[%clk 0:01:41.1]} 18. Nd4
{[%clk 0:01:23.8]} 18... R4e5 {[%clk 0:01:29.9]} 19. c4 {[%clk 0:01:13.2]} 19...
Nf6 {[%clk 0:01:17.2]} 20. b4 {[%clk 0:00:38.7]} 20... Ne4 {[%clk 0:01:09.9]}
21. Qd3 {[%clk 0:00:39]} 21... Nxf2 {[%clk 0:01:02.5]} 22. Rxf2 {[%clk
0:00:25.9]} 22... Qxd4 {[%clk 0:00:48.5]} 23. Qxd4 {[%clk 0:00:07.7]} 23... Re1+
{[%clk 0:00:47.6]} 24. Rf1 {[%clk 0:00:06.2]} 24... Bxd4+ {[%clk 0:00:46.9]} 25.
Kh2 {[%clk 0:00:06.7]} 25... R1e2 {[%clk 0:00:36.8]} 26. Rbd1 {[%clk 0:00:04.7]}
26... Bc3 {[%clk 0:00:30.6]} 27. a3 {[%clk 0:00:02.3]} 27... Ra2 {[%clk
0:00:29.3]} 28. Rd3 {[%clk 0:00:01.4]} 28... Ree2 {[%clk 0:00:28.4]} 29. Rxc3
{[%clk 0:00:01]} 29... Rxg2+ {[%clk 0:00:28.3]} 30. Kh1 {[%clk 0:00:01.6]} 30...
Rh2+ {[%clk 0:00:29.2]} 0-1

[Event "Late-Titled-Tuesday-Blitz-June-18-2024"]
[Site "Chess.com"]
[Date "2024.06.18"]
[Round "4"]
[White "DishonorOnYourCow"]
[Black "ClauAmura"]
[Result "0-1"]
[WhiteElo "2500"]
[BlackElo "2362"]
[TimeControl "180+1"]
[EndTime "14:41:16 PDT"]
[Termination "ClauAmura won on time"]

1. d4 {[%clk 0:03:00.9]} 1... d5 {[%clk 0:02:59.4]} 2. c4 {[%clk 0:03:01.2]}
2... e6 {[%clk 0:02:59.8]} 3. Nf3 {[%clk 0:03:00.2]} 3... Nf6 {[%clk 0:02:57.7]}
4. Nc3 {[%clk 0:02:59.4]} 4... Nbd7 {[%clk 0:02:49.9]} 5. cxd5 {[%clk
0:02:57.8]} 5... exd5 {[%clk 0:02:49]} 6. Bf4 {[%clk 0:02:58.2]} 6... c6 {[%clk
0:02:48.3]} 7. e3 {[%clk 0:02:58.5]} 7... Nh5 {[%clk 0:02:48.3]} 8. Bg5 {[%clk
0:02:57.4]} 8... Be7 {[%clk 0:02:47.7]} 9. Bxe7 {[%clk 0:02:54.3]} 9... Qxe7
{[%clk 0:02:48.6]} 10. Be2 {[%clk 0:02:48.3]} 10... O-O {[%clk 0:02:46.6]} 11.
O-O {[%clk 0:02:48]} 11... g6 {[%clk 0:02:46.9]} 12. Nd2 {[%clk 0:02:39.3]}
12... Ng7 {[%clk 0:02:41.6]} 13. Bd3 {[%clk 0:02:38.2]} 13... Nf6 {[%clk
0:02:40.6]} 14. Qc2 {[%clk 0:02:37.8]} 14... Bf5 {[%clk 0:02:40.9]} 15. Rab1
{[%clk 0:02:28.4]} 15... Bxd3 {[%clk 0:02:38.3]} 16. Qxd3 {[%clk 0:02:28.7]}
16... Nf5 {[%clk 0:02:39]} 17. b4 {[%clk 0:02:27.6]} 17... a6 {[%clk 0:02:39]}
18. a4 {[%clk 0:02:27.3]} 18... b5 {[%clk 0:02:39.1]} 19. axb5 {[%clk
0:02:25.1]} 19... axb5 {[%clk 0:02:36.9]} 20. Nb3 {[%clk 0:02:06.3]} 20... Nd6
{[%clk 0:02:36.6]} 21. Na5 {[%clk 0:02:05.8]} 21... Ra6 {[%clk 0:02:37.1]} 22.
Rfe1 {[%clk 0:02:02.1]} 22... Nc4 {[%clk 0:02:34.7]} 23. e4 {[%clk 0:01:46.5]}
23... Re8 {[%clk 0:02:06.2]} 24. Nxc4 {[%clk 0:00:54.4]} 24... bxc4 {[%clk
0:02:07.1]} 25. Qc2 {[%clk 0:00:52.6]} 25... dxe4 {[%clk 0:01:59.5]} 26. h3
{[%clk 0:00:44.5]} 26... Rb6 {[%clk 0:01:49.8]} 27. Na2 {[%clk 0:00:22.9]} 27...
Qe6 {[%clk 0:01:40.3]} 28. Rbc1 {[%clk 0:00:20.5]} 28... Ra8 {[%clk 0:01:19.1]}
29. Re2 {[%clk 0:00:20.2]} 29... Nd5 {[%clk 0:01:15.1]} 30. Rxe4 {[%clk
0:00:14.1]} 30... Qf5 {[%clk 0:01:10.5]} 31. Re2 {[%clk 0:00:10.5]} 31... Nf4
{[%clk 0:01:08.2]} 32. Rd2 {[%clk 0:00:05.3]} 32... Qg5 {[%clk 0:01:07.8]} 33.
f3 {[%clk 0:00:02.5]} 33... Nxh3+ {[%clk 0:01:05.3]} 34. Kh2 {[%clk 0:00:02.4]}
34... Nf4 {[%clk 0:00:59.8]} 35. Nc3 {[%clk 0:00:02.1]} 35... Rd8 {[%clk
0:00:54.3]} 36. Ne4 {[%clk 0:00:02.3]} 36... Qh4+ {[%clk 0:00:53.8]} 37. Kg1
{[%clk 0:00:02.4]} 37... Rxb4 {[%clk 0:00:47.8]} 0-1

[Event "Late-Titled-Tuesday-Blitz-June-18-2024"]
[Site "Chess.com"]
[Date "2024.06.18"]
[Round "4"]
[White "js20000"]
[Black "GHANDEEVAM2003"]
[Result "0-1"]
[WhiteElo "2803"]
[BlackElo "2991"]
[TimeControl "180+1"]
[EndTime "14:41:17 PDT"]
[Termination "GHANDEEVAM2003 won by resignation"]

1. e4 {[%clk 0:03:00.9]} 1... c6 {[%clk 0:03:00.2]} 2. d4 {[%clk 0:02:58.7]}
2... d5 {[%clk 0:03:00.8]} 3. exd5 {[%clk 0:02:59.4]} 3... cxd5 {[%clk
0:03:01.7]} 4. Bd3 {[%clk 0:02:59.5]} 4... Nc6 {[%clk 0:03:01.8]} 5. c3 {[%clk
0:02:59.9]} 5... g6 {[%clk 0:03:01.1]} 6. Bf4 {[%clk 0:02:59.9]} 6... Bf5 {[%clk
0:03:00]} 7. Bxf5 {[%clk 0:02:58]} 7... gxf5 {[%clk 0:03:00.9]} 8. Nf3 {[%clk
0:02:58.5]} 8... Nf6 {[%clk 0:02:59.8]} 9. O-O {[%clk 0:02:58.9]} 9... Rg8
{[%clk 0:02:58.5]} 10. Ne5 {[%clk 0:02:58.2]} 10... e6 {[%clk 0:02:56.5]} 11.
Nd2 {[%clk 0:02:56.8]} 11... Nxe5 {[%clk 0:02:54.5]} 12. dxe5 {[%clk 0:02:55.1]}
12... Ne4 {[%clk 0:02:53.6]} 13. Qa4+ {[%clk 0:02:47.9]} 13... Qd7 {[%clk
0:02:53.3]} 14. Qxd7+ {[%clk 0:02:47.5]} 14... Kxd7 {[%clk 0:02:54.2]} 15. Nb3
{[%clk 0:02:47.5]} 15... Nc5 {[%clk 0:02:49.8]} 16. Rfd1 {[%clk 0:02:37.8]}
16... a5 {[%clk 0:02:35.3]} 17. c4 {[%clk 0:02:34.5]} 17... Nxb3 {[%clk
0:02:31.2]} 18. axb3 {[%clk 0:02:33.6]} 18... Kc6 {[%clk 0:02:32.1]} 19. cxd5+
{[%clk 0:02:32.8]} 19... exd5 {[%clk 0:02:33]} 20. Rac1+ {[%clk 0:02:32.8]}
20... Bc5 {[%clk 0:02:33.4]} 21. Be3 {[%clk 0:02:26.4]} 21... b6 {[%clk
0:02:33.3]} 22. Rd3 {[%clk 0:02:24.9]} 22... Rac8 {[%clk 0:02:22]} 23. Bd2
{[%clk 0:02:10.3]} 23... Rg4 {[%clk 0:02:19]} 24. Rf3 {[%clk 0:02:07.6]} 24...
Kb5 {[%clk 0:02:00.7]} 25. Rxf5 {[%clk 0:01:59.4]} 25... Rd4 {[%clk 0:02:01.1]}
26. Be1 {[%clk 0:01:56.8]} 26... Re4 {[%clk 0:01:52]} 27. Kf1 {[%clk 0:01:56.4]}
27... Bb4 {[%clk 0:01:51.7]} 28. Rd1 {[%clk 0:01:53.4]} 28... Bxe1 {[%clk
0:01:20.5]} 29. Rxe1 {[%clk 0:01:54.3]} 29... Kb4 {[%clk 0:01:21.2]} 30. Rxf7
{[%clk 0:01:33.6]} 30... Kxb3 {[%clk 0:01:19.2]} 31. e6 {[%clk 0:01:20.5]} 31...
Rxe1+ {[%clk 0:00:49.1]} 32. Kxe1 {[%clk 0:01:21.4]} 32... Re8 {[%clk
0:00:49.3]} 33. e7 {[%clk 0:01:21.1]} 33... Kxb2 {[%clk 0:00:49.7]} 34. Kd2
{[%clk 0:01:21.4]} 34... b5 {[%clk 0:00:43.8]} 35. f4 {[%clk 0:00:45.6]} 35...
a4 {[%clk 0:00:43.5]} 36. f5 {[%clk 0:00:38.7]} 36... a3 {[%clk 0:00:43.3]} 37.
f6 {[%clk 0:00:38.9]} 37... a2 {[%clk 0:00:43.2]} 38. Rf8 {[%clk 0:00:38.5]}
38... a1=Q {[%clk 0:00:43.1]} 39. Rxe8 {[%clk 0:00:39]} 39... Qc1+ {[%clk
0:00:43.8]} 40. Ke2 {[%clk 0:00:36]} 40... Qc2+ {[%clk 0:00:42.4]} 41. Kf3
{[%clk 0:00:27.4]} 41... Qf5+ {[%clk 0:00:42.1]} 42. Kg3 {[%clk 0:00:24.8]}
42... Qg6+ {[%clk 0:00:35.8]} 0-1

[Event "Late-Titled-Tuesday-Blitz-June-18-2024"]
[Site "Chess.com"]
[Date "2024.06.18"]
[Round "4"]
[White "StoreySniper"]
[Black "yaguigor"]
[Result "0-1"]
[WhiteElo "2405"]
[BlackElo "2641"]
[TimeControl "180+1"]
[EndTime "14:41:17 PDT"]
[Termination "yaguigor won on time"]

1. d4 {[%clk 0:02:50.2]} 1... d5 {[%clk 0:02:58.5]} 2. Bf4 {[%clk 0:02:48.7]}
2... Nf6 {[%clk 0:02:57.2]} 3. e3 {[%clk 0:02:48.5]} 3... c5 {[%clk 0:02:56.3]}
4. Nd2 {[%clk 0:02:47.1]} 4... Nc6 {[%clk 0:02:52.6]} 5. Ngf3 {[%clk 0:02:46.5]}
5... cxd4 {[%clk 0:02:46.8]} 6. exd4 {[%clk 0:02:46]} 6... Bf5 {[%clk
0:02:47.4]} 7. c3 {[%clk 0:02:45]} 7... e6 {[%clk 0:02:46.9]} 8. Qb3 {[%clk
0:02:40.7]} 8... Qc8 {[%clk 0:02:45.6]} 9. Nh4 {[%clk 0:02:33.6]} 9... Be4
{[%clk 0:02:41.8]} 10. Nxe4 {[%clk 0:02:31]} 10... Nxe4 {[%clk 0:02:37.9]} 11.
Nf3 {[%clk 0:02:21.5]} 11... Bd6 {[%clk 0:02:36]} 12. Bxd6 {[%clk 0:02:13.2]}
12... Nxd6 {[%clk 0:02:34.9]} 13. Bd3 {[%clk 0:02:11.1]} 13... O-O {[%clk
0:02:33.2]} 14. O-O {[%clk 0:02:07.6]} 14... Qc7 {[%clk 0:02:27.7]} 15. Qd1
{[%clk 0:02:05.6]} 15... h6 {[%clk 0:02:25]} 16. Qd2 {[%clk 0:02:03.4]} 16... b5
{[%clk 0:02:20.1]} 17. Qf4 {[%clk 0:01:42.9]} 17... Rfc8 {[%clk 0:02:18.9]} 18.
Qh4 {[%clk 0:01:29.5]} 18... Nc4 {[%clk 0:02:16]} 19. Bxc4 {[%clk 0:01:16.2]}
19... bxc4 {[%clk 0:02:13.6]} 20. Rae1 {[%clk 0:01:08.1]} 20... Rab8 {[%clk
0:02:11.6]} 21. Re2 {[%clk 0:01:05.5]} 21... Rb6 {[%clk 0:02:07.3]} 22. Rd1
{[%clk 0:01:00.5]} 22... Rcb8 {[%clk 0:02:06]} 23. Rdd2 {[%clk 0:01:00.4]} 23...
R8b7 {[%clk 0:02:05.4]} 24. h3 {[%clk 0:00:47.2]} 24... Qb8 {[%clk 0:02:04.2]}
25. g4 {[%clk 0:00:35.6]} 25... Rxb2 {[%clk 0:02:00.1]} 26. g5 {[%clk
0:00:34.2]} 26... Rxd2 {[%clk 0:01:55.7]} 27. Rxd2 {[%clk 0:00:33.8]} 27... Qd8
{[%clk 0:01:54.3]} 28. Qh5 {[%clk 0:00:21.1]} 28... Rb1+ {[%clk 0:01:42.8]} 29.
Kg2 {[%clk 0:00:21]} 29... Ne7 {[%clk 0:01:40.9]} 30. gxh6 {[%clk 0:00:19.1]}
30... Ng6 {[%clk 0:01:40.8]} 31. Qg4 {[%clk 0:00:05.3]} 31... gxh6 {[%clk
0:01:33.9]} 32. Ne5 {[%clk 0:00:05.7]} 32... Qf6 {[%clk 0:01:27]} 33. Nxg6
{[%clk 0:00:05.3]} 33... Qxg6 {[%clk 0:01:26.6]} 34. Qxg6+ {[%clk 0:00:05.2]}
34... fxg6 {[%clk 0:01:26.4]} 35. Re2 {[%clk 0:00:05.4]} 35... Kf7 {[%clk
0:01:24.8]} 36. Re3 {[%clk 0:00:05.6]} 36... Rb2 {[%clk 0:01:21]} 37. Rf3+
{[%clk 0:00:06]} 37... Ke7 {[%clk 0:01:20.3]} 38. Rg3 {[%clk 0:00:06.2]} 38...
g5 {[%clk 0:01:19.9]} 39. h4 {[%clk 0:00:06.7]} 39... Rxa2 {[%clk 0:01:14.2]}
40. hxg5 {[%clk 0:00:06.6]} 40... hxg5 {[%clk 0:01:15.1]} 41. Rxg5 {[%clk
0:00:07.3]} 41... Kf6 {[%clk 0:01:13.5]} 42. Rh5 {[%clk 0:00:06.6]} 42... Rc2
{[%clk 0:01:10.6]} 43. Rh6+ {[%clk 0:00:06.2]} 43... Kf5 {[%clk 0:01:09.7]} 44.
Rh5+ {[%clk 0:00:05.1]} 44... Kg6 {[%clk 0:01:09.1]} 45. Rh3 {[%clk 0:00:01.2]}
45... a5 {[%clk 0:01:07.5]} 0-1

[Event "Late-Titled-Tuesday-Blitz-June-18-2024"]
[Site "Chess.com"]
[Date "2024.06.18"]
[Round "4"]
[White "Jimonios"]
[Black "sirinbaba33"]
[Result "0-1"]
[WhiteElo "2643"]
[BlackElo "2514"]
[TimeControl "180+1"]
[EndTime "14:41:18 PDT"]
[Termination "sirinbaba33 won by resignation"]

1. e4 {[%clk 0:03:00.9]} 1... c5 {[%clk 0:02:59.7]} 2. Nf3 {[%clk 0:03:00.8]}
2... e6 {[%clk 0:03:00.3]} 3. d4 {[%clk 0:03:00.9]} 3... cxd4 {[%clk 0:03:01.2]}
4. Nxd4 {[%clk 0:03:01.5]} 4... Nc6 {[%clk 0:03:01.9]} 5. Nc3 {[%clk 0:03:01.6]}
5... Qc7 {[%clk 0:03:02.3]} 6. Nxc6 {[%clk 0:03:00.7]} 6... dxc6 {[%clk
0:03:01.9]} 7. f4 {[%clk 0:02:59.5]} 7... e5 {[%clk 0:02:59.3]} 8. Qf3 {[%clk
0:02:58.4]} 8... Nf6 {[%clk 0:02:55.8]} 9. fxe5 {[%clk 0:02:58.1]} 9... Qxe5
{[%clk 0:02:55.4]} 10. Bf4 {[%clk 0:02:58.7]} 10... Qa5 {[%clk 0:02:48.5]} 11.
h3 {[%clk 0:02:58]} 11... Bb4 {[%clk 0:02:46]} 12. Bd2 {[%clk 0:02:57.8]} 12...
O-O {[%clk 0:02:41.6]} 13. Bd3 {[%clk 0:02:57.4]} 13... Qe5 {[%clk 0:02:22.8]}
14. O-O {[%clk 0:02:55.3]} 14... Bc5+ {[%clk 0:02:17.8]} 15. Kh1 {[%clk
0:02:55.3]} 15... Bd6 {[%clk 0:02:18.1]} 16. Bf4 {[%clk 0:02:52.9]} 16... Qxf4
{[%clk 0:02:17.8]} 17. Qxf4 {[%clk 0:02:53.8]} 17... Bxf4 {[%clk 0:02:18.3]} 18.
Rxf4 {[%clk 0:02:54.7]} 18... Re8 {[%clk 0:02:17.6]} 19. a4 {[%clk 0:02:50.8]}
19... a5 {[%clk 0:02:15.4]} 20. Raf1 {[%clk 0:02:48.9]} 20... Re5 {[%clk
0:02:14.3]} 21. g4 {[%clk 0:02:47.4]} 21... h6 {[%clk 0:02:12.9]} 22. Kg2 {[%clk
0:02:45.4]} 22... Be6 {[%clk 0:02:12.1]} 23. Kg3 {[%clk 0:02:44.7]} 23... Rd8
{[%clk 0:02:11.9]} 24. Ne2 {[%clk 0:02:41.5]} 24... c5 {[%clk 0:01:59.8]} 25. b3
{[%clk 0:02:39.6]} 25... c4 {[%clk 0:01:55.3]} 26. bxc4 {[%clk 0:02:39.5]} 26...
Rc8 {[%clk 0:01:54.4]} 27. Rb1 {[%clk 0:02:34.9]} 27... Rc7 {[%clk 0:01:39.1]}
28. Rb5 {[%clk 0:02:32.9]} 28... Nd7 {[%clk 0:01:39.2]} 29. Nd4 {[%clk
0:01:29.3]} 29... Bxc4 {[%clk 0:01:36.1]} 30. Bxc4 {[%clk 0:01:17.4]} 30... Rxc4
{[%clk 0:01:37]} 31. Nf5 {[%clk 0:00:58.9]} 31... Rxb5 {[%clk 0:01:21.1]} 32.
axb5 {[%clk 0:00:59.8]} 32... Ne5 {[%clk 0:01:05.1]} 33. Nd6 {[%clk 0:00:58.9]}
33... Rc3+ {[%clk 0:01:03.7]} 34. Kg2 {[%clk 0:00:58.3]} 34... Rxc2+ {[%clk
0:01:00.9]} 35. Kf1 {[%clk 0:00:53.3]} 35... a4 {[%clk 0:00:58.1]} 36. Kg1
{[%clk 0:00:22.7]} 36... a3 {[%clk 0:00:43.1]} 37. Rf1 {[%clk 0:00:21.3]} 37...
a2 {[%clk 0:00:43.4]} 38. Nxb7 {[%clk 0:00:14.1]} 38... Nf3+ {[%clk 0:00:43.4]}
39. Rxf3 {[%clk 0:00:11.8]} 39... a1=Q+ {[%clk 0:00:43]} 40. Rf1 {[%clk
0:00:12.7]} 40... Qa7+ {[%clk 0:00:41.8]} 0-1

[Event "Late-Titled-Tuesday-Blitz-June-18-2024"]
[Site "Chess.com"]
[Date "2024.06.18"]
[Round "4"]
[White "lukas_111111"]
[Black "pirulillo"]
[Result "1-0"]
[WhiteElo "2648"]
[BlackElo "2397"]
[TimeControl "180+1"]
[EndTime "14:41:18 PDT"]
[Termination "lukas_111111 won by resignation"]

1. d4 {[%clk 0:03:00.9]} 1... Nf6 {[%clk 0:02:58.4]} 2. g3 {[%clk 0:03:01]} 2...
g6 {[%clk 0:02:56.2]} 3. Bg2 {[%clk 0:03:00.6]} 3... Bg7 {[%clk 0:02:56.2]} 4.
e4 {[%clk 0:03:00.8]} 4... d6 {[%clk 0:02:55.9]} 5. Ne2 {[%clk 0:03:00.9]} 5...
Kf8 {[%clk 0:02:55.8]} 6. O-O {[%clk 0:03:00.1]} 6... Nbd7 {[%clk 0:02:43.9]} 7.
e5 {[%clk 0:02:59.6]} 7... Ne8 {[%clk 0:02:40.7]} 8. exd6 {[%clk 0:02:54.3]}
8... cxd6 {[%clk 0:02:36.4]} 9. c4 {[%clk 0:02:53.9]} 9... h5 {[%clk 0:02:29.4]}
10. Nbc3 {[%clk 0:02:51.9]} 10... h4 {[%clk 0:02:28.9]} 11. gxh4 {[%clk
0:02:48.4]} 11... Rxh4 {[%clk 0:02:24.5]} 12. Be3 {[%clk 0:02:17.6]} 12... Ndf6
{[%clk 0:02:16.8]} 13. Ng3 {[%clk 0:02:11.9]} 13... Ng4 {[%clk 0:01:53.3]} 14.
Bg5 {[%clk 0:02:10.1]} 14... Rh8 {[%clk 0:01:52.2]} 15. Nd5 {[%clk 0:02:09.4]}
15... f6 {[%clk 0:01:42.7]} 16. h3 {[%clk 0:02:03.2]} 16... Nh6 {[%clk
0:01:37.3]} 17. Bd2 {[%clk 0:01:59.6]} 17... g5 {[%clk 0:01:24.3]} 18. f4 {[%clk
0:01:55.1]} 18... g4 {[%clk 0:01:21.7]} 19. f5 {[%clk 0:01:43.8]} 19... gxh3
{[%clk 0:00:42]} 20. Bxh3 {[%clk 0:01:43.5]} 20... Nf7 {[%clk 0:00:42.1]} 21.
Nf4 {[%clk 0:01:42.7]} 21... Ng5 {[%clk 0:00:36.5]} 22. Ng6+ {[%clk 0:01:40.1]}
22... Kf7 {[%clk 0:00:37]} 23. Nxh8+ {[%clk 0:01:39.5]} 23... Bxh8 {[%clk
0:00:37.9]} 24. Qh5+ {[%clk 0:01:38.8]} 24... Kg8 {[%clk 0:00:37.3]} 25. Bxg5
{[%clk 0:01:37.3]} 25... fxg5 {[%clk 0:00:38.2]} 26. Qxg5+ {[%clk 0:01:36.7]}
26... Bg7 {[%clk 0:00:37.5]} 27. Nh5 {[%clk 0:01:36.8]} 27... Qb6 {[%clk
0:00:34.2]} 28. c5 {[%clk 0:01:31.9]} 28... dxc5 {[%clk 0:00:32.4]} 29. Rae1
{[%clk 0:01:23.3]} 29... Qh6 {[%clk 0:00:25.9]} 30. Qxh6 {[%clk 0:01:22.5]}
30... Bxh6 {[%clk 0:00:26.8]} 31. Rxe7 {[%clk 0:01:22.1]} 31... Ng7 {[%clk
0:00:22]} 32. Nxg7 {[%clk 0:01:11]} 32... Bxg7 {[%clk 0:00:22.9]} 33. f6 {[%clk
0:01:10.6]} 33... Bf8 {[%clk 0:00:19.9]} 34. Bxc8 {[%clk 0:01:07]} 34... Rxc8
{[%clk 0:00:19.3]} 35. Rxb7 {[%clk 0:01:01.9]} 35... cxd4 {[%clk 0:00:19.1]} 36.
Rd1 {[%clk 0:00:56.7]} 36... Bc5 {[%clk 0:00:15.8]} 37. Rd3 {[%clk 0:00:56.2]}
37... Bb6 {[%clk 0:00:13.5]} 38. Rg7+ {[%clk 0:00:54.7]} 38... Kf8 {[%clk
0:00:13.4]} 39. Kg2 {[%clk 0:00:49.5]} 39... Rc2+ {[%clk 0:00:13.1]} 40. Kf1
{[%clk 0:00:46.1]} 40... Rxb2 {[%clk 0:00:13.4]} 41. Rh3 {[%clk 0:00:46]} 41...
Rb1+ {[%clk 0:00:08.7]} 42. Ke2 {[%clk 0:00:45.3]} 42... Rb2+ {[%clk 0:00:08.9]}
43. Kd1 {[%clk 0:00:43.9]} 1-0